bitfinex/quotes_SOLUSD_20250915
["timestamp","ask_amount","ask_price","bid_price","bid_amount"]
[1757894629211,33.04,240.97,240.93,0.06]
[1757894630086,33.04,240.96,240.93,0.78]
[1757894630798,33.04,240.96,240.93,0.06]
[1757894630799,33.72,240.96,240.93,0.06]
[1757894631376,33.04,240.96,240.93,0.06]
[1757894634714,33.72,240.96,240.93,0.06]
[1757894636080,13.62559401,240.99,240.93,0.06]
[1757894636283,32.94,240.98,240.94,0.66]
[1757894636481,32.94,240.98,240.95,4.15023863]
[1757894636707,32.94,240.98,240.95,4.81023863]
[1757894636879,32.94,240.98,240.96,0.66]
[1757894637286,32.94,240.97,240.96,0.66]
[1757894638223,0.03,240.99,240.96,0.66]
[1757894638385,32.97,240.99,240.96,0.66]
[1757894638582,32.97,240.99,240.97,4.14989417]
[1757894638902,0.03,240.99,240.98,0.66]
[1757894640402,0.03,240.99,240.98,26.66]
[1757894640607,0.03,240.99,240.98,30.80972196]
[1757894641318,0.03,240.99,240.98,4.80972196]
[1757894641815,0.03,240.99,240.98,4.14972196]
[1757894643113,0.03,240.99,240.94,4.15041089]
[1757894643283,0.03,240.99,240.94,4.81041089]
[1757894643486,0.03,240.99,240.95,0.66]
[1757894643787,0.03,240.99,240.97,26.0]
[1757894644309,0.03,240.99,240.98,0.66]
[1757894644505,1e-08,241.04,240.98,0.66]
[1757894644813,1e-08,241.04,241.02,26.0]
[1757894645015,0.03,241.08,241.02,26.0]
[1757894645314,0.03,241.08,241.06,26.0]
[1757894645612,0.03,241.13,241.06,26.0]
[1757894645811,0.03,241.13,241.07,0.66]
[1757894645996,1e-08,241.17,241.11,26.0]
[1757894646201,1e-08,241.17,241.12,0.66]
[1757894646709,1e-08,241.17,241.13,0.66]
[1757894647120,1e-08,241.17,241.14,0.66]
[1757894647415,1e-08,241.17,241.15,4.14679659]
[1757894647824,0.68000001,241.17,241.12,4.14716646]
[1757894649013,1e-08,241.17,241.11,10.36865592]
[1757894649219,1e-08,241.17,241.14,26.0]
[1757894649597,1e-08,241.17,241.15,0.72]
[1757894650506,1e-08,241.17,241.16,4.14662464]
[1757894650913,1e-08,241.17,241.16,4.86662464]
[1757894652014,1e-08,241.17,241.16,30.86662464]
[1757894652813,1e-08,241.17,241.16,4.86662464]
[1757894653025,1e-08,241.17,241.16,30.14662464]
[1757894653817,1e-08,241.17,241.16,4.14662464]
[1757894654421,1e-08,241.17,241.14,14.51438523]
[1757894654712,1e-08,241.17,241.14,15.23438523]
[1757894655523,1e-08,241.17,241.15,0.72]
[1757894656296,1e-08,241.17,241.14,14.51438523]
[1757894656619,1e-08,241.17,241.02,54.94438397]
[1757894656620,0.66,241.16,241.08,4.1479181]
[1757894656806,1e-08,241.17,241.09,0.72]
[1757894657003,1e-08,241.17,241.08,40.51791975]
[1757894657004,0.66000001,241.17,241.08,30.1479181]
[1757894657519,1e-08,241.17,241.09,0.72]
[1757894657724,0.66,241.16,241.08,40.51791975]
[1757894658928,1e-08,241.17,241.09,0.72]
[1757894659103,1e-08,241.17,241.11,26.0]
[1757894659501,1e-08,241.17,241.12,0.72]
[1757894659719,1e-08,241.17,241.11,26.0]
[1757894660525,1e-08,241.17,241.12,14.51559389]
[1757894660915,1e-08,241.17,241.13,0.72]
[1757894661427,1e-08,241.17,241.14,0.72]
[1757894662623,1e-08,241.17,241.15,4.14679659]
[1757894663831,1e-08,241.17,241.15,0.72]
[1757894664225,1e-08,241.17,241.13,14.5149919]
[1757894664411,1e-08,241.17,241.16,0.72]
[1757894665834,1e-08,241.17,241.16,4.14662464]
[1757894668240,1e-08,241.17,241.13,14.5149919]
[1757894668622,1e-08,241.17,241.14,0.72]
[1757894669705,1e-08,241.17,241.15,4.14679659]
[1757894670733,1e-08,241.17,241.15,4.86679659]
[1757894671037,1e-08,241.17,241.15,4.14679659]
[1757894671837,1e-08,241.17,241.14,14.51438997]
[1757894672341,0.66,241.16,241.14,14.51438997]
[1757894672516,1e-08,241.17,241.14,14.51438997]
[1757894672717,0.66,241.16,241.14,14.51438997]
[1757894673210,1e-08,241.17,241.14,14.51438997]
[1757894673414,0.66000001,241.17,241.14,14.51438997]
[1757894673830,0.66000001,241.17,241.1,14.516798]
[1757894675052,0.66,241.16,241.1,14.516798]
[1757894675339,0.66,241.15,241.1,14.516798]
[1757894675515,0.66,241.14,241.1,14.516798]
[1757894675716,0.66,241.13,241.1,14.516798]
[1757894675920,39.59559401,241.16,241.1,4.14765657]
[1757894676149,0.66,241.12,241.1,4.14765657]
[1757894676443,0.66,241.11,241.1,4.14765657]
[1757894677146,0.66,241.11,241.09,4.14782861]
[1757894677536,0.66,241.14,241.09,4.14782861]
[1757894677836,0.66,241.13,241.09,14.51740013]
[1757894678145,32.86,241.16,241.09,14.51740013]
[1757894678322,32.86,241.16,241.1,0.72]
[1757894678917,1e-08,241.17,241.11,14.51619592]
[1757894679237,1e-08,241.17,241.12,0.69]
[1757894679623,1e-08,241.17,241.11,40.51619592]
[1757894679624,1e-08,241.17,241.13,0.69]
[1757894680132,1e-08,241.17,241.11,61.25361867]
[1757894680443,1e-08,241.17,241.14,0.69]
[1757894680946,1e-08,241.17,241.16,4.14662464]
[1757894682928,1e-08,241.17,241.16,4.83662464]
[1757894687034,1e-08,241.17,241.16,4.14662464]
[1757894687240,0.66000001,241.17,241.14,10.36735389]
[1757894690727,0.66,241.16,241.12,4.14731254]
[1757894690954,0.66,241.15,241.12,4.14731254]
[1757894691656,1e-08,241.17,241.12,4.14731254]
[1757894691657,0.66,241.14,241.12,14.51559389]
[1757894692560,0.66,241.14,241.12,10.36828135]
[1757894692729,0.66,241.13,241.12,10.36828135]
[1757894692932,0.66,241.13,241.1,4.14765657]
[1757894693170,0.66,241.12,241.1,4.14765657]
[1757894693365,0.66,241.11,241.09,0.06]
[1757894693568,13.59559401,241.1,241.09,0.06]
[1757894693736,0.66,241.1,241.09,0.06]
[1757894693938,36.25939599,241.14,241.09,0.06]
[1757894694246,0.69,241.1,241.09,0.06]
[1757894697954,32.84,241.13,241.1,4.14765657]
[1757894698273,0.69,241.12,241.1,4.14765657]
[1757894698464,0.69,241.11,241.1,4.14765657]
[1757894700446,0.69,241.11,241.09,4.20778964]
[1757894700668,0.69,241.1,241.09,4.20778964]
[1757894700855,32.84,241.13,241.09,4.20778964]
[1757894701055,0.69000001,241.17,241.09,14.57736116]
[1757894701375,32.84000001,241.17,241.11,14.51619592]
[1757894701572,32.84000001,241.17,241.12,0.68]
[1757894701777,32.84000001,241.17,241.13,0.68]
[1757894702076,0.69,241.16,241.11,4.14748455]
[1757894702274,0.69,241.16,241.1,4.14765657]
[1757894702275,0.69,241.15,241.1,4.14765657]
[1757894702473,0.69,241.14,241.09,0.06]
[1757894702660,26.0,241.13,241.09,0.06]
[1757894702975,0.69,241.14,241.09,0.06]
[1757894702976,0.69,241.12,241.09,0.06]
[1757894703349,0.69,241.11,241.09,0.06]
[1757894703872,26.0,241.14,241.09,4.20776903]
[1757894704044,0.69,241.1,241.09,4.20776903]
[1757894704545,14.28559401,241.1,241.09,0.06]
[1757894705255,33.55,241.1,241.09,4.20782861]
[1757894705455,33.55,241.1,241.09,0.06]
[1757894705670,0.69,241.1,241.09,0.06]
[1757894705875,33.55,241.1,241.09,0.06]
[1757894706470,51.29325058,241.1,241.09,0.06]
[1757894706773,0.69,241.1,241.09,0.06]
[1757894706975,33.57,241.1,241.09,0.06]
[1757894707675,32.88,241.1,241.09,4.20782861]
[1757894707864,33.57,241.1,241.09,0.06]
[1757894708765,47.16559401,241.1,241.09,0.06]
[1757894709159,59.57,241.1,241.09,0.06]
[1757894709668,33.57,241.1,241.09,0.06]
[1757894710693,33.57,241.1,241.09,4.20782861]
[1757894710867,33.57,241.1,241.09,0.06]
[1757894712183,32.88,241.1,241.09,0.06]
[1757894713658,14.29559401,241.13,241.09,4.20765866]
[1757894713976,33.56,241.12,241.09,0.06]
[1757894714362,0.7,241.11,241.09,0.06]
[1757894714572,32.86,241.12,241.09,4.2078227]
[1757894716596,32.86,241.12,241.09,14.57739422]
[1757894716801,32.86,241.12,241.1,0.71]
[1757894717102,0.70000001,241.17,241.1,0.71]
[1757894717259,0.70000001,241.17,241.11,14.51619592]
[1757894717260,32.86,241.16,241.11,14.51619592]
[1757894717460,32.86,241.16,241.12,0.71]
[1757894717882,32.86,241.16,241.11,14.51619592]
[1757894718059,1e-08,241.17,241.12,0.71]
[1757894719461,1e-08,241.17,241.13,14.5149919]
[1757894719864,1e-08,241.17,241.14,0.71]
[1757894720483,1e-08,241.17,241.15,0.71]
[1757894721686,1e-08,241.17,241.16,4.14662464]
[1757894722011,1e-08,241.17,241.16,4.85662464]
[1757894723790,1e-08,241.17,241.16,30.85662464]
[1757894725969,1e-08,241.17,241.16,30.14662464]
[1757894726478,1e-08,241.17,241.16,30.85662464]
[1757894726685,1e-08,241.17,241.06,0.06]
[1757894726686,13.59559401,241.16,241.06,0.06]
[1757894726866,0.7,241.15,241.06,0.06]
[1757894727069,0.7,241.15,241.09,14.57738079]
[1757894728195,0.7,241.15,241.09,4.20780927]
[1757894728579,0.7,241.15,241.09,14.57738079]
[1757894729089,32.84000001,241.17,241.09,14.57738079]
[1757894729290,32.84000001,241.17,241.09,15.28738079]
[1757894729488,0.7,241.16,241.09,15.28738079]
[1757894730596,1e-08,241.17,241.1,0.71]
[1757894731694,1e-08,241.17,241.11,14.51619592]
[1757894731895,0.7,241.16,241.11,14.51619592]
[1757894732075,0.7,241.15,241.11,14.51619592]
[1757894734102,1e-08,241.17,241.11,14.51619592]
[1757894734301,0.7,241.14,241.11,14.51619592]
[1757894734888,0.7,241.16,241.11,14.51619592]
[1757894736198,0.7,241.15,241.11,14.51619592]
[1757894736516,1e-08,241.17,241.11,14.51619592]
[1757894736715,1e-08,241.17,241.12,0.71]
[1757894737083,1e-08,241.17,241.11,14.51619592]
[1757894739705,0.66,241.16,241.11,14.51619592]
[1757894740012,0.66,241.15,241.11,4.14748455]
[1757894740199,0.66,241.14,241.11,4.14748455]
[1757894740511,0.66,241.13,241.11,4.14748455]
[1757894740709,13.59559402,241.17,241.11,4.14748455]
[1757894740915,0.66,241.12,241.09,0.06]
[1757894741090,33.5,241.12,241.09,4.20782321]
[1757894741285,0.66,241.11,241.09,4.20782321]
[1757894741800,32.84,241.12,241.09,4.20782321]
[1757894741995,33.5,241.12,241.09,4.20782321]
[1757894743094,26.66,241.16,241.09,15.23739473]
[1757894743287,32.84,241.15,241.09,15.23739473]
[1757894743487,33.5,241.15,241.09,14.57739473]
[1757894743914,0.66,241.14,241.09,14.57739473]
[1757894744091,0.66,241.13,241.09,14.57739473]
[1757894749500,32.84,241.15,241.09,14.57739473]
[1757894749700,32.84,241.15,241.1,0.66]
[1757894749895,33.5,241.15,241.09,14.57739473]
[1757894750612,32.84,241.14,241.1,0.66]
[1757894750826,32.84,241.14,241.11,0.66]
[1757894750991,1e-08,241.17,241.12,0.66]
[1757894751198,1e-08,241.17,241.13,0.66]
[1757894751809,1e-08,241.17,241.11,0.66]
[1757894754197,1e-08,241.17,241.12,14.51559389]
[1757894754802,0.69,241.16,241.12,14.51559389]
[1757894755401,1e-08,241.17,241.12,15.21559389]
[1757894755719,1e-08,241.17,241.13,0.7]
[1757894756015,1e-08,241.17,241.12,14.51559389]
[1757894756211,0.69000001,241.17,241.12,15.21559389]
[1757894756521,1e-08,241.17,241.12,14.51559389]
[1757894756705,1e-08,241.17,241.13,0.7]
[1757894758114,1e-08,241.17,241.14,14.51438997]
[1757894758306,1e-08,241.17,241.14,15.21438997]
[1757894759126,1e-08,241.17,241.15,0.7]
[1757894760112,1e-08,241.17,241.12,26.0]
[1757894760318,1e-08,241.17,241.15,0.7]
[1757894760816,1e-08,241.17,241.16,0.7]
[1757894761714,1e-08,241.17,241.16,4.14662464]
[1757894762296,0.69000001,241.17,241.11,14.51614688]
[1757894762593,0.69000001,241.17,241.12,0.7]
[1757894762594,1e-08,241.17,241.12,0.7]
[1757894762819,1e-08,241.17,241.13,0.7]
[1757894763204,1e-08,241.17,241.14,0.7]
[1757894763605,1e-08,241.17,241.16,4.14662464]
[1757894765813,1e-08,241.17,241.16,0.7]
[1757894766927,1e-08,241.17,241.16,26.7]
[1757894767898,1e-08,241.17,241.16,30.84662464]
[1757894770326,1e-08,241.17,241.16,45.04662464]
[1757894774307,1e-08,241.17,241.16,44.34662464]
[1757894774518,1e-08,241.17,241.16,4.14662464]
[1757894775026,0.70000001,241.17,241.16,4.14662464]
[1757894775604,0.70000001,241.17,241.14,14.51432734]
[1757894776637,0.7,241.16,241.14,4.14696856]
[1757894776810,0.7,241.15,241.14,4.14696856]
[1757894779523,0.7,241.15,241.13,0.06]
[1757894781137,13.59559401,241.14,241.13,0.06]
[1757894781513,14.29559401,241.14,241.13,0.06]
[1757894782206,33.52,241.14,241.13,0.06]
[1757894783937,47.11559401,241.14,241.13,0.06]
[1757894789843,32.82,241.14,241.13,0.06]
[1757894790632,32.82,241.14,241.13,4.20711241]
[1757894790816,32.82,241.14,241.13,4.91711241]
[1757894791423,32.82,241.14,241.13,4.20711241]
[1757894791624,1e-08,241.17,241.13,4.91711241]
[1757894791844,1e-08,241.17,241.14,0.71]
[1757894792352,1e-08,241.17,241.15,4.14679659]
[1757894793051,1e-08,241.17,241.15,4.85679659]
[1757894794431,0.70000001,241.17,241.13,0.06]
[1757894794632,0.70000001,241.17,241.13,4.20708277]
[1757894795449,1e-08,241.17,241.14,0.71]
[1757894796729,1e-08,241.17,241.15,4.14679659]
[1757894797255,0.7,241.16,241.14,4.14688016]
[1757894797633,33.52,241.16,241.14,4.14688016]
[1757894797838,32.82,241.16,241.14,4.14688016]
[1757894798230,32.82,241.16,241.13,0.06]
[1757894798552,0.7,241.15,241.13,0.06]
[1757894799146,0.69,241.15,241.13,0.06]
[1757894799457,0.69,241.14,241.13,0.06]
[1757894800063,26.69,241.14,241.13,0.06]
[1757894801659,40.28559401,241.14,241.13,0.06]
[1757894801826,76.55774696,241.14,241.13,0.06]
[1757894802026,13.59559401,241.09,240.88,35.16]
[1757894802258,33.49,241.08,240.88,20.96]
[1757894802555,0.69,241.08,240.9,34.41044603]
[1757894802760,32.8,241.07,240.91,0.06]
[1757894802926,32.8,241.07,240.98,10.37401497]
[1757894803128,33.49,241.07,240.98,10.37401497]
[1757894803329,2.3538589,241.14,241.03,0.66]
[1757894803527,32.8,241.13,241.03,0.66]
[1757894803932,32.8,241.16,241.04,26.0]
[1757894804171,32.8,241.16,241.05,0.66]
[1757894805177,33.49,241.16,241.06,14.51920683]
[1757894805384,0.69,241.15,241.06,14.51920683]
[1757894805670,0.69,241.14,241.06,14.51920683]
[1757894805893,0.69,241.13,241.06,14.51920683]
[1757894806373,0.69,241.15,241.07,0.66]
[1757894806860,0.69,241.15,241.06,14.51920683]
[1757894807155,0.69,241.15,241.06,15.17920683]
[1757894807565,32.8,241.16,241.07,0.66]
[1757894809076,32.8,241.16,241.08,14.51800231]
[1757894809266,32.8,241.16,241.09,0.66]
[1757894810878,33.49,241.16,241.09,0.66]
[1757894811171,33.49,241.16,241.1,14.516798]
[1757894811583,1e-08,241.17,241.11,0.66]
[1757894813252,1e-08,241.17,241.12,14.51559389]
[1757894813648,1e-08,241.17,241.13,0.66]
[1757894813972,1e-08,241.17,241.12,14.51559389]
[1757894813973,0.69,241.16,241.12,14.51559389]
[1757894814144,1e-08,241.17,241.12,14.51559389]
[1757894814345,0.67,241.16,241.12,14.51559389]
[1757894815466,0.67,241.16,241.12,10.36828135]
[1757894815645,1e-08,241.17,241.12,10.36828135]
[1757894816261,1e-08,241.17,241.13,0.66]
[1757894816458,1e-08,241.17,241.12,10.36828135]
[1757894816658,0.67000001,241.17,241.12,10.36828135]
[1757894818673,0.67000001,241.17,241.12,0.66]
[1757894819054,0.67000001,241.17,241.1,0.66]
[1757894819776,26.0,241.16,241.05,14.2]
[1757894820068,0.67,241.15,241.05,4.1485169]
[1757894820250,33.47,241.14,241.05,4.1485169]
[1757894820462,0.67,241.13,241.05,4.1485169]
[1757894820660,32.8,241.14,241.05,14.51980916]
[1757894820661,0.67,241.12,241.05,14.51980916]
[1757894820858,0.67,241.11,241.05,4.1485169]
[1757894821064,0.67,241.1,241.03,0.06]
[1757894821267,58.8,241.09,241.03,0.06]
[1757894821465,0.67,241.08,241.03,0.06]
[1757894821644,58.8,241.09,241.03,0.06]
[1757894821848,32.8,241.08,241.03,4.20878306]
[1757894822274,0.67,241.07,241.03,4.20878306]
[1757894822456,32.8,241.08,241.03,4.20878306]
[1757894822655,0.67,241.07,241.03,4.20878306]
[1757894822875,0.67,241.06,241.03,4.20878306]
[1757894823279,32.8,241.08,241.03,0.06]
[1757894823581,0.67,241.05,241.03,0.06]
[1757894824555,0.67,241.05,241.03,4.20882161]
[1757894824879,0.67,241.05,241.03,0.06]
[1757894825077,32.8,241.08,241.03,0.06]
[1757894825277,0.67,241.04,241.03,4.2088427]
[1757894825472,0.67,241.04,241.03,0.06]
[1757894826860,0.67,241.07,241.03,4.20881271]
[1757894827064,32.8,241.08,241.03,4.20881271]
[1757894827268,0.67,241.07,241.03,4.20881271]
[1757894827466,32.8,241.08,241.03,0.06]
[1757894827467,0.67,241.06,241.03,0.06]
[1757894827883,39.59559401,241.05,241.03,0.06]
[1757894828092,4.14868901,241.04,240.97,3.68877043]
[1757894828291,32.8,241.03,240.97,3.68877043]
[1757894828771,0.67,241.04,240.97,3.68877043]
[1757894828958,32.8,241.03,240.97,4.34877043]
[1757894829160,32.8,241.03,240.97,14.72350587]
[1757894830291,32.8,241.03,240.97,10.37473544]
[1757894830588,33.5,241.03,240.97,10.37473544]
[1757894831459,32.8,241.03,240.97,10.37473544]
[1757894831663,33.5,241.03,240.97,10.37473544]
[1757894834993,26.0,241.0,240.95,4.15023863]
[1757894835284,32.8,240.99,240.94,0.06]
[1757894835486,32.8,240.98,240.94,0.06]
[1757894835668,33.5,240.98,240.94,0.06]
[1757894835985,32.8,241.03,240.95,0.66]
[1757894836186,32.8,241.03,240.95,14.86]
[1757894836364,32.8,241.04,240.96,15.1852324]
[1757894836760,32.8,241.04,240.97,0.06]
[1757894837594,33.5,241.04,240.97,0.06]
[1757894838478,13.59559401,241.07,240.98,14.52402688]
[1757894838670,26.0,241.04,240.98,14.52402688]
[1757894839178,32.8,241.04,240.98,14.52402688]
[1757894839384,32.78,241.05,240.98,14.52402688]
[1757894839596,32.78,241.06,240.98,14.52402688]
[1757894839802,0.7,241.12,240.99,0.66]
[1757894840100,33.48,241.12,240.99,0.66]
[1757894840601,33.48,241.12,241.0,14.52282157]
[1757894840800,0.7,241.15,241.01,0.66]
[1757894841099,32.78,241.14,241.03,26.0]
[1757894841298,32.78,241.14,241.04,0.66]
[1757894842899,32.78,241.14,241.05,14.51980916]
[1757894843401,0.7,241.13,241.05,14.51980916]
[1757894844399,0.7,241.13,241.05,15.17980916]
[1757894844572,0.7,241.12,241.05,14.51980916]
[1757894844774,0.7,241.11,241.05,14.51980916]
[1757894844977,0.7,241.1,241.01,14.52221898]
[1757894845200,32.78,241.09,241.01,15.18221898]
[1757894845404,32.78,241.09,241.02,0.66]
[1757894847194,32.78,241.09,241.03,14.52101397]
[1757894849286,32.78,241.09,241.03,15.18101397]
[1757894849601,0.7,241.13,241.04,0.66]
[1757894849981,0.7,241.13,241.03,28.72101397]
[1757894850192,32.78,241.14,241.03,28.72101397]
[1757894850193,14.29559401,241.12,241.03,14.52101397]
[1757894850487,0.7,241.11,241.03,4.14886113]
[1757894850798,0.7,241.1,241.03,4.14886113]
[1757894850992,13.59559401,241.12,241.03,4.14886113]
[1757894850993,0.7,241.09,241.03,4.14886113]
[1757894851183,13.59559401,241.12,241.03,4.14886113]
[1757894851184,33.48,241.08,241.03,4.14886113]
[1757894851387,0.7,241.07,241.01,10.37274703]
[1757894852183,32.78,241.08,241.01,10.37274703]
[1757894852184,0.7,241.06,241.01,10.37274703]
[1757894852382,0.7,241.05,241.01,10.37274703]
[1757894852589,0.7,241.04,241.01,10.37274703]
[1757894852895,0.71,241.03,241.01,10.37274703]
[1757894853201,0.71,241.03,240.99,4.14954977]
[1757894853410,0.71,241.02,240.99,4.14954977]
[1757894853618,0.71,241.01,240.99,4.14954977]
[1757894853977,0.71,241.0,240.99,4.14954977]
[1757894854491,32.78,241.02,240.99,4.14954977]
[1757894854877,32.78,241.02,240.97,0.06]
[1757894855102,0.71,241.01,240.97,0.06]
[1757894855402,0.71,241.0,240.97,0.06]
[1757894855590,0.71,241.0,240.97,4.20983721]
[1757894855794,0.71,240.99,240.97,0.06]
[1757894856197,0.71,240.99,240.94,4.21040233]
[1757894856198,13.59559401,240.98,240.94,0.06]
[1757894856385,26.0,240.95,240.94,0.06]
[1757894856797,26.71,240.95,240.94,0.06]
[1757894857401,0.71,240.95,240.94,0.06]
[1757894857599,33.49,240.95,240.94,0.06]
[1757894858007,32.78,240.95,240.94,0.06]
[1757894858516,33.49,240.95,240.94,0.06]
[1757894858721,32.78,240.95,240.94,0.06]
[1757894860409,32.78,240.96,240.95,4.15023863]
[1757894861416,33.49,240.96,240.94,0.06]
[1757894861600,0.71,240.95,240.94,0.06]
[1757894864396,3.47914139,240.95,240.94,0.06]
[1757894865912,17.0747354,240.95,240.94,0.06]
[1757894869926,2.76914139,240.95,240.94,0.06]
[1757894870612,32.78,240.96,240.94,4.21037747]
[1757894870813,32.78,240.96,240.94,0.06]
[1757894871040,0.71,240.95,240.94,0.06]
[1757894871825,32.78,240.96,240.94,0.06]
[1757894872031,0.71,240.99,240.94,4.21039121]
[1757894872331,3.50215295,241.03,240.94,4.21039121]
[1757894872332,58.78,240.98,240.94,4.93039121]
[1757894873017,59.49,240.98,240.94,4.21039121]
[1757894873324,0.03,240.97,240.94,4.21039121]
[1757894873524,0.74,240.97,240.94,4.21039121]
[1757894874503,0.03,240.97,240.94,4.21039121]
[1757894875828,0.03,240.97,240.94,4.91039121]
[1757894876919,0.03,240.97,240.94,4.21039121]
[1757894877258,0.03,240.97,240.94,4.91039121]
[1757894877412,0.03,240.97,240.94,15.28641843]
[1757894880163,0.03,240.97,240.95,0.7]
[1757894880535,0.03,240.97,240.96,0.7]
[1757894881038,0.03,240.97,240.96,4.8500664]
[1757894881245,0.03,240.97,240.96,0.7]
[1757894881444,0.03,240.97,240.96,4.8500664]
[1757894881841,0.03,240.97,240.94,0.06]
[1757894882160,0.03,240.97,240.94,4.21040633]
[1757894882656,0.03,240.97,240.95,0.7]
[1757894883167,0.03,240.97,240.95,4.15006705]
[1757894883342,0.03,240.97,240.94,0.06]
[1757894883542,0.03,240.97,240.94,4.91040302]
[1757894883743,0.03,240.97,240.94,15.28643024]
[1757894883951,0.03,240.97,240.95,0.7]
[1757894884659,0.03,240.97,240.96,0.7]
[1757894884959,0.03,240.97,240.94,15.28643024]
[1757894885264,0.03,240.97,240.95,0.7]
[1757894885472,0.69,240.96,240.94,0.06]
[1757894885643,33.45,240.96,240.94,0.06]
[1757894885848,2.76830655,240.95,240.94,0.06]
[1757894886055,16.36390073,240.95,240.94,0.06]
[1757894886256,17.05390073,240.95,240.94,0.06]
[1757894887289,16.36390073,240.95,240.94,0.06]
[1757894887566,17.05390073,240.95,240.94,0.06]
[1757894889774,14.28559401,240.95,240.94,0.06]
[1757894892046,47.04559401,240.95,240.94,0.06]
[1757894892443,32.76,240.95,240.94,0.06]
[1757894892870,33.42,240.95,240.94,0.06]
[1757894893169,32.76,240.95,240.94,0.06]
[1757894895968,26.0,240.96,240.94,0.06]
[1757894896168,58.76,240.95,240.94,4.91029431]
[1757894896369,58.76,240.95,240.94,0.06]
[1757894896561,32.76,240.95,240.94,0.76]
[1757894896969,32.76,240.95,240.94,0.06]
[1757894897659,46.35559401,240.95,240.94,0.06]
[1757894897965,47.01559401,240.95,240.94,0.06]
[1757894898166,0.66,240.95,240.94,0.06]
[1757894898472,32.76,240.95,240.94,0.06]
[1757894900585,33.42,240.95,240.94,0.06]
[1757894902174,47.01559401,240.95,240.94,0.06]
[1757894902970,51.65499278,240.95,240.94,0.06]
[1757894904087,46.35559401,240.95,240.94,0.06]
[1757894904685,50.4951308,240.95,240.94,0.06]
[1757894905090,36.23953679,240.95,240.94,0.06]
[1757894905270,32.76,240.95,240.94,0.06]
[1757894906182,32.76,240.95,240.94,0.76]
[1757894906592,32.76,240.95,240.94,0.06]
[1757894911971,47.01559401,240.95,240.94,0.06]
[1757894912172,50.4951308,240.95,240.94,0.06]
[1757894912380,47.01559401,240.95,240.94,0.06]
[1757894912583,50.4951308,240.95,240.94,0.06]
[1757894912784,47.01559401,240.95,240.94,0.06]
[1757894913895,51.65471049,240.95,240.94,0.06]
[1757894916499,47.01559401,240.95,240.94,0.06]
[1757894916919,53.91854173,240.95,240.94,0.06]
[1757894917115,58.14176803,240.95,240.94,0.06]
[1757894917420,59.807359,240.95,240.94,0.06]
[1757894917994,52.90441128,240.95,240.94,0.06]
[1757894918601,37.7460049,240.94,240.93,0.06]
[1757894918791,46.40006768,240.94,240.93,0.06]
[1757894918988,47.06006768,240.94,240.93,0.06]
[1757894920125,42.90965679,240.94,240.93,0.06]
[1757894920427,75.64965679,240.94,240.93,0.06]
[1757894921318,82.59263529,240.94,240.93,0.06]
[1757894922600,75.64965679,240.94,240.93,0.06]
[1757894923400,77.31531712,240.94,240.93,0.06]
[1757894923726,75.64965679,240.94,240.93,0.06]
[1757894924604,82.59263529,240.94,240.93,0.06]